bitfinex-derivatives/quotes_SOLF0:USTF0_20250320
["timestamp","ask_amount","ask_price","bid_price","bid_amount"]
[1742462800856,7.52475229,133.85,133.82,10.84815487]
[1742462801155,0.05455229,133.85,133.82,18.31945487]
[1742462801857,0.05455229,133.85,133.83,7.4711]
[1742462804861,7.52475229,133.85,133.83,7.4711]
[1742462805255,0.05455229,133.85,133.83,7.4711]
[1742462806964,0.05455229,133.85,133.84,7.4707]
[1742462807360,0.05455229,133.85,133.84,18.27058262]
[1742462809164,0.05455229,133.85,133.84,10.79988262]
[1742462809666,7.52465229,133.85,133.84,10.79988262]
[1742462810964,0.05455229,133.85,133.84,10.79988262]
[1742462811165,0.05455229,133.85,133.84,18.27058262]
[1742462811665,0.05455229,133.85,133.84,10.79988262]
[1742462812465,0.05455229,133.85,133.84,18.27058262]
[1742462813365,0.05455229,133.85,133.84,10.79988262]
[1742462813864,0.05455229,133.85,133.84,18.27058262]
[1742462816466,28.5175,133.9,133.86,7.4691]
[1742462816667,28.5175,133.9,133.86,10.79988262]
[1742462816860,35.9852,133.9,133.87,7.4686]
[1742462817065,28.5175,133.9,133.86,10.79988262]
[1742462817372,7.468,133.89,133.86,10.79988262]
[1742462817671,7.51964573,133.89,133.87,0.05637108]
[1742462818271,0.05164573,133.89,133.87,0.05637108]
[1742462818471,0.05164573,133.89,133.88,10.79988262]
[1742462818972,0.05164573,133.89,133.88,18.26828262]
[1742462820372,0.05164573,133.89,133.88,10.79988262]
[1742462820872,0.05164573,133.89,133.88,18.26828262]
[1742462825172,0.05164573,133.89,133.88,10.79988262]
[1742462825378,0.05164573,133.89,133.87,10.8562537]
[1742462825579,7.4684,133.88,133.87,0.05637108]
[1742462826580,0.05164573,133.89,133.87,0.05637108]
[1742462826981,10.85152835,133.89,133.87,0.05637108]
[1742462827279,7.4684,133.88,133.87,0.05637108]
[1742462827475,18.26828262,133.88,133.87,0.05637108]
[1742462831082,7.4704,133.85,133.83,26.44]
[1742462831281,7.4704,133.85,133.82,18.27138262]
[1742462831882,7.4707,133.84,133.82,10.79988262]
[1742462832181,7.4707,133.84,133.81,46.67828262]
[1742462832483,0.04961645,133.84,133.82,7.52165674]
[1742462833482,0.04961645,133.84,133.82,7.52175674]
[1742462834182,0.04961645,133.84,133.83,7.4712]
[1742462839887,0.04961645,133.84,133.82,18.32163936]
[1742462840389,0.04961645,133.84,133.82,10.85013936]
[1742462841490,7.4712,133.83,133.82,10.85013936]
[1742462842893,7.4712,133.83,133.82,0.05025674]
[1742462843992,7.4735,133.79,133.78,10.79988262]
[1742462844195,7.4735,133.79,133.78,37.23988262]
[1742462844590,7.4735,133.79,133.77,37.23988262]
[1742462844892,10.79988262,133.81,133.76,37.23988262]
[1742462845194,0.04931237,133.8,133.77,10.85153067]
[1742462845395,0.04931237,133.8,133.78,7.4739]
[1742462845692,0.04931237,133.8,133.79,10.79988262]
[1742462846093,0.04931237,133.8,133.79,18.27338262]
[1742462847295,0.04931237,133.8,133.79,44.71338262]
[1742462850897,37.23988262,133.86,133.79,37.23988262]
[1742462851097,37.23988262,133.86,133.82,10.79988262]
[1742462851297,44.70988262,133.86,133.82,10.79988262]
[1742462851696,44.70988262,133.86,133.83,7.4711]
[1742462851892,44.70988262,133.86,133.83,7.51866445]
[1742462852098,44.76547524,133.86,133.83,7.51866445]
[1742462852896,124.771145,133.84,133.83,7.51866445]
[1742462855598,124.771145,133.84,133.83,0.04756445]
[1742462856102,132.241845,133.84,133.83,0.04756445]
[1742462856296,18.27058262,133.84,133.83,0.04756445]
[1742462863500,12.77388262,133.84,133.77,44.71418262]
[1742462863700,10.79988262,133.8,133.75,37.23988262]
[1742462864110,26.44,133.81,133.77,10.79988262]
[1742462864402,26.44,133.81,133.78,10.79988262]
[1742462864607,0.04945233,133.8,133.79,10.79988262]
[1742462865508,0.04945233,133.8,133.79,18.27338262]
[1742462867206,0.04945233,133.8,133.79,7.4735]
[1742462870311,0.04945233,133.8,133.78,44.76946393]
[1742462870509,0.04945233,133.8,133.78,0.05588131]
[1742462870710,10.84933495,133.8,133.78,0.05588131]
[1742462870916,7.4735,133.79,133.78,0.05588131]
[1742462880620,18.27338262,133.79,133.78,0.05588131]
[1742462880816,10.79988262,133.79,133.74,46.75508262]
[1742462881016,10.79988262,133.79,133.74,39.27918262]
[1742462881217,26.48945233,133.8,133.75,10.79988262]
[1742462881218,7.4743,133.78,133.75,10.79988262]
[1742462881521,7.4743,133.78,133.75,18.27528262]
[1742462881913,7.4743,133.78,133.75,18.32010036]
[1742462882623,7.4748,133.77,133.75,10.84470036]
[1742462882826,10.79988262,133.79,133.75,0.04481774]
[1742462883122,10.79988262,133.78,133.75,0.04481774]
[1742462883324,7.4748,133.77,133.75,0.04481774]
[1742462884118,10.79988262,133.79,133.75,0.04481774]
[1742462884827,7.4751,133.76,133.75,0.04481774]
[1742462885027,10.79988262,133.76,133.71,10.79988262]
[1742462885230,7.4766,133.74,133.71,10.79988262]
[1742462885721,7.4759,133.75,133.71,10.79988262]
[1742462885924,10.79988262,133.76,133.71,10.79988262]
[1742462886223,7.4766,133.74,133.71,18.27748262]
[1742462886423,0.05456705,133.75,133.71,10.79988262]
[1742462887029,7.53066705,133.75,133.71,18.27758262]
[1742462887226,10.85444967,133.75,133.71,10.79988262]
[1742462887425,26.44,133.74,133.71,10.79988262]
[1742462887638,26.44,133.74,133.71,7.4779]
[1742462887639,33.9167,133.74,133.71,7.4779]
[1742462888229,26.44,133.74,133.72,7.4773]
[1742462888722,33.9163,133.74,133.7,37.23988262]
[1742462888925,33.9163,133.74,133.71,7.4777]
[1742462889225,26.44,133.74,133.71,7.4777]
[1742462889630,33.9164,133.74,133.71,7.4777]
[1742462890531,7.4768,133.73,133.71,7.4777]
[1742462890932,7.4768,133.73,133.7,18.27808262]
[1742462892129,7.4774,133.72,133.7,10.79988262]
[1742462892329,7.4774,133.72,133.69,18.27868262]
[1742462892628,37.23988262,133.74,133.69,10.79988262]
[1742462892829,0.05446894,133.72,133.7,7.4782]
[1742462893836,0.05446894,133.72,133.69,10.79988262]
[1742462894334,0.05446894,133.72,133.7,7.4784]
[1742462895144,7.53186894,133.72,133.69,18.27868262]
[1742462895838,7.53186894,133.72,133.7,7.4785]
[1742462896233,7.53186894,133.72,133.69,10.79988262]
[1742462896435,7.53186894,133.72,133.69,18.27858262]
[1742462897828,0.05446894,133.72,133.69,10.79988262]
[1742462898231,0.05446894,133.72,133.7,7.4782]
[1742462898430,7.53226894,133.72,133.69,10.79988262]
[1742462899032,7.53226894,133.72,133.69,18.27868262]
[1742462900436,0.05446894,133.72,133.69,10.79988262]
[1742462901038,0.05446894,133.72,133.7,7.4782]
[1742462901540,0.05446894,133.72,133.69,10.79988262]
[1742462901740,0.05446894,133.72,133.68,37.23988262]
[1742462902640,7.4782,133.71,133.69,7.4788]
[1742462903241,7.4782,133.71,133.68,18.27918262]
[1742462903542,7.4782,133.71,133.68,10.79988262]
[1742462903746,7.4782,133.71,133.69,7.4789]
[1742462905045,7.53206894,133.72,133.69,7.4789]
[1742462905845,7.53206894,133.72,133.68,10.79988262]
[1742462906147,7.53206894,133.72,133.69,10.79988262]
[1742462906343,7.53206894,133.72,133.69,7.4787]
[1742462907045,7.4781,133.71,133.69,7.4787]
[1742462907648,7.53216894,133.72,133.69,7.4787]
[1742462907847,7.53216894,133.72,133.68,10.79988262]
[1742462908444,7.53216894,133.72,133.69,7.4787]
[1742462908839,7.53216894,133.72,133.68,10.79988262]
[1742462909043,7.53216894,133.72,133.69,18.27848262]
[1742462909250,7.53216894,133.72,133.69,10.79988262]
[1742462909444,0.05446894,133.72,133.7,10.79988262]
[1742462909652,28.5276,133.77,133.71,10.79988262]
[1742462909841,613.6674,133.8,133.75,10.79988262]
[1742462910042,33.9138,133.79,133.75,10.79988262]
[1742462910338,26.44,133.79,133.75,18.27528262]
[1742462910848,0.05420658,133.78,133.76,0.05320271]
[1742462911752,0.05420658,133.78,133.76,10.85308533]
[1742462911953,0.05420658,133.78,133.77,10.79988262]
[1742462912755,0.05420658,133.78,133.77,18.27448262]
[1742462913251,0.05420658,133.78,133.77,10.79988262]
[1742462913950,0.05420658,133.78,133.77,18.27448262]
[1742462914147,0.05420658,133.78,133.77,7.4746]
[1742462915949,0.05420658,133.78,133.77,18.27448262]
[1742462920147,0.05420658,133.78,133.76,26.49320271]
[1742462920344,0.05420658,133.78,133.77,10.79988262]
[1742462920541,0.05420658,133.78,133.77,18.27448262]
[1742462923054,26.44,133.84,133.8,7.4725]
[1742462923251,37.23988262,133.84,133.8,7.4725]
[1742462923855,7.4713,133.83,133.8,7.4725]
[1742462924354,7.52314272,133.83,133.8,7.52800948]
[1742462924544,0.05184272,133.83,133.81,10.79988262]
[1742462924747,0.05184272,133.83,133.82,37.23988262]
[1742462929056,7.52304272,133.83,133.82,37.23988262]
[1742462929664,0.05184272,133.83,133.82,37.23988262]
[1742462930351,82.83220768,133.94,133.82,37.23988262]
[1742462930551,18.35713138,133.93,133.88,10.79988262]
[1742462930754,26.42,133.92,133.88,10.79988262]
[1742462931563,7.52425664,133.91,133.89,0.05624941]
[1742462931862,10.85723926,133.91,133.89,0.05624941]
[1742462932960,7.4673,133.9,133.89,0.05624941]
[1742462933666,7.4685,133.88,133.85,26.42]
[1742462933867,37.21988262,133.89,133.84,10.79988262]
[1742462934366,44.68798262,133.89,133.84,10.79988262]
[1742462934869,0.0547583,133.88,133.85,0.05716312]
[1742462936066,0.0547583,133.88,133.85,10.85704574]
[1742462936663,0.0547583,133.88,133.86,7.4694]
[1742462936865,0.0547583,133.88,133.87,10.79988262]
[1742462940072,0.0547583,133.88,133.86,10.79988262]
[1742462940673,0.0547583,133.88,133.87,10.79988262]
[1742462941571,7.5237583,133.88,133.85,10.85704574]
[1742462942373,7.4691,133.87,133.85,10.85704574]
[1742462943479,7.4695,133.86,133.85,0.05716312]
[1742462943672,10.79988262,133.86,133.8,10.79988262]
[1742462943873,7.4715,133.83,133.79,39.19448262]
[1742462944375,26.42,133.85,133.82,10.79988262]
[1742462944667,7.4704,133.85,133.82,10.79988262]
[1742462944868,7.51852798,133.85,133.82,10.84698833]
[1742462945062,7.51852798,133.85,133.82,0.04710571]
[1742462947075,0.04812798,133.85,133.82,0.04710571]
[1742462947270,10.8480106,133.85,133.82,0.04710571]
[1742462947979,10.79988262,133.84,133.82,0.04710571]
[1742462948181,7.471,133.84,133.82,0.04710571]
[1742462948579,10.8480106,133.85,133.82,0.04710571]
[1742462949084,7.4712,133.83,133.82,0.04710571]
[1742462954283,26.42,133.84,133.82,0.04710571]
[1742462954486,0.04812798,133.85,133.82,10.84698833]
[1742462954785,7.51852798,133.85,133.82,18.31868833]
[1742462955688,7.51852798,133.85,133.82,10.84698833]
[1742462956191,0.04812798,133.85,133.82,10.84698833]
[1742462956389,0.04812798,133.85,133.82,0.04710571]
[1742462956984,7.4712,133.83,133.82,0.04710571]
[1742462961386,37.21988262,133.83,133.78,10.79988262]
[1742462961992,26.42,133.83,133.79,10.79988262]
[1742462962490,0.05682136,133.82,133.79,10.79988262]
[1742462962686,0.05682136,133.82,133.79,18.27308262]
[1742462962687,7.52892136,133.82,133.79,18.27308262]
[1742462963289,0.05682136,133.82,133.8,18.27258262]
[1742462963495,0.05682136,133.82,133.81,10.79988262]
[1742462964394,0.05682136,133.82,133.81,18.27218262]
[1742462964590,41.41610384,133.89,133.81,10.79988262]
[1742462964788,41.41610384,133.89,133.86,10.79988262]
[1742462964994,48.88410384,133.89,133.85,37.43988262]
[1742462965187,48.88410384,133.89,133.86,10.79988262]
[1742462965693,48.94137553,133.89,133.86,10.85142242]
[1742462965895,0.05727169,133.89,133.86,10.85142242]
[1742462966489,7.52517169,133.89,133.86,10.85142242]
[1742462966690,0.05727169,133.89,133.86,10.85142242]
[1742462967093,7.4685,133.88,133.86,10.85142242]
[1742462967293,7.4685,133.88,133.86,0.0515398]
[1742462967694,7.469,133.87,133.86,0.0515398]
[1742462968691,18.26888262,133.87,133.86,0.0515398]
[1742462969994,18.26858262,133.88,133.86,0.0515398]
[1742462970293,7.4687,133.88,133.86,0.0515398]
[1742462971197,7.469,133.87,133.86,0.0515398]
[1742462978694,7.4687,133.88,133.86,0.0515398]
[1742462979196,7.52557169,133.89,133.86,7.5210398]
[1742462979397,0.05727169,133.89,133.87,10.79988262]
[1742462979701,7.52547169,133.89,133.87,10.79988262]
[1742462980594,0.05727169,133.89,133.87,18.26888262]
[1742462982104,7.52517169,133.89,133.87,10.79988262]
[1742462982802,0.05727169,133.89,133.86,37.37142242]
[1742462983001,10.79988262,133.88,133.86,0.0515398]
[1742462983200,18.26888262,133.87,133.86,0.0515398]
[1742462985401,7.4712,133.83,133.82,37.31988262]
[1742462985802,25.50572359,133.94,133.82,44.79988262]
[1742462985999,12.91618262,133.94,133.88,10.79988262]
[1742462986198,12.91618262,133.94,133.88,37.43988262]
[1742462986599,0.05147118,133.92,133.88,37.43988262]
[1742462986795,10.40549714,133.92,133.88,37.43988262]
[1742462987506,10.40549714,133.92,133.88,44.90828262]
[1742462987707,10.40549714,133.92,133.88,37.43988262]
[1742462988709,17.87169714,133.92,133.88,37.43988262]
[1742462989007,28.67157976,133.92,133.88,37.43988262]
[1742462989302,10.40549714,133.92,133.88,26.64]
[1742462989711,0.05147118,133.92,133.88,26.64]
[1742462990009,0.05147118,133.92,133.89,7.4676]
[1742462991009,0.05147118,133.92,133.88,34.1082]
[1742462991207,0.05147118,133.92,133.88,26.64]
[1742462991904,0.05147118,133.92,133.88,34.1083]
[1742462993505,7.51797118,133.92,133.88,34.1083]
[1742462994707,0.05147118,133.92,133.89,7.4678]
[1742462994906,0.05147118,133.92,133.88,26.64]
[1742462998211,0.05147118,133.92,133.9,7.4669]
[1742462998810,0.05147118,133.92,133.88,26.64]
[1742462999202,0.05147118,133.92,133.9,7.4673]
[1742462999403,0.05147118,133.92,133.88,26.64]
[1742462999805,0.05147118,133.92,133.89,7.4676]
[1742463000207,0.05147118,133.92,133.88,26.64]
[1742463000713,0.05147118,133.92,133.88,26.52]
[1742463000909,0.05147118,133.92,133.89,7.4678]
[1742463001108,0.05147118,133.92,133.88,26.52]
[1742463001714,0.05147118,133.92,133.89,7.4674]
[1742463002111,0.05147118,133.92,133.88,26.52]
[1742463002310,7.51797118,133.92,133.88,33.9884]
[1742463002510,0.05147118,133.92,133.88,26.52]
[1742463003012,0.05147118,133.92,133.89,7.4676]
[1742463004114,0.05147118,133.92,133.9,7.4673]
[1742463005016,0.05147118,133.92,133.89,7.4676]
[1742463005211,7.51777118,133.92,133.89,7.4676]
[1742463006115,0.05147118,133.92,133.9,7.4673]
[1742463006619,0.05147118,133.92,133.88,43.39020082]
[1742463007012,0.05147118,133.92,133.91,7.4668]
[1742463007219,0.05147118,133.92,133.91,33.9468]
[1742463009221,0.05147118,133.92,133.91,44.73726833]
[1742463010526,0.05147118,133.92,133.91,37.27046833]
[1742463011222,0.05147118,133.92,133.9,10.79046833]
[1742463011433,0.05147118,133.92,133.9,26.46]
[1742463011830,7.4671,133.91,133.9,26.46]
[1742463017037,7.4673,133.9,133.89,10.79046833]
[1742463017240,7.4673,133.9,133.89,37.21046833]
[1742463017441,0.05147118,133.92,133.89,37.21046833]
[1742463017844,0.05147118,133.92,133.91,10.79046833]
[1742463018140,0.05147118,133.92,133.91,18.25726833]
[1742463019645,2.0775,133.97,133.93,7.4652]
[1742463019843,2.0775,133.97,133.93,44.69566833]
[1742463020038,12.86796833,133.97,133.93,37.23046833]
[1742463020544,10.79046833,133.97,133.93,37.23046833]
[1742463020743,10.79046833,133.97,133.93,44.69576833]
[1742463021044,0.05490654,133.96,133.94,0.05455002]
[1742463021841,7.51890654,133.96,133.94,0.05455002]
[1742463022040,0.05490654,133.96,133.94,0.05455002]
[1742463022642,7.4645,133.95,133.94,0.05455002]
[1742463024849,7.4668,133.91,133.9,37.21046833]
[1742463025346,7.4673,133.9,133.89,37.21046833]
[1742463027843,7.5169849,133.91,133.89,37.21046833]
[1742463031450,7.4673,133.9,133.89,26.42]
[1742463031751,0.0500849,133.91,133.88,10.79046833]
[1742463031946,7.4673,133.9,133.88,10.79046833]
[1742463032841,7.5170849,133.91,133.88,10.79046833]
[1742463033042,0.0500849,133.91,133.88,10.79046833]
[1742463033345,0.0500849,133.91,133.88,18.25856833]
[1742463033546,7.5170849,133.91,133.88,18.25856833]
[1742463035446,0.0500849,133.91,133.88,10.79046833]
[1742463036046,7.4678,133.9,133.88,10.79046833]
[1742463038547,7.4678,133.9,133.88,18.25886833]
[1742463040352,0.0500849,133.91,133.89,7.4678]
[1742463040553,0.0500849,133.91,133.9,10.79046833]
[1742463042357,7.5168849,133.91,133.89,10.79046833]
[1742463043557,7.4673,133.9,133.89,10.79046833]
[1742463043750,0.0500849,133.91,133.89,10.79046833]
[1742463043950,7.5171849,133.91,133.89,10.79046833]
[1742463044850,7.4673,133.9,133.89,10.79046833]
[1742463045554,7.4681,133.89,133.87,37.19046833]
[1742463047552,7.4684,133.88,133.87,37.19046833]
[1742463047756,7.4684,133.88,133.87,26.4]
[1742463047955,37.24055323,133.91,133.86,10.79046833]
[1742463049056,26.4500849,133.91,133.87,10.79046833]
[1742463049357,7.4673,133.9,133.87,10.79046833]
[1742463049961,7.4673,133.9,133.87,18.25916833]
[1742463050161,33.9170849,133.91,133.88,10.79046833]
[1742463050351,7.5170849,133.91,133.88,10.79046833]
[1742463050860,7.5170849,133.91,133.89,10.79046833]
[1742463052679,0.0500849,133.91,133.9,10.79046833]
[1742463052961,0.0500849,133.91,133.9,18.25776833]
[1742463062364,0.0500849,133.91,133.89,26.4]
[1742463062567,7.5171849,133.91,133.88,10.79046833]
[1742463062764,7.5171849,133.91,133.87,37.19046833]
[1742463062966,0.0500849,133.91,133.87,10.79046833]
[1742463063168,7.4679,133.89,133.87,26.4]
[1742463064264,7.4677,133.9,133.87,33.8687]
[1742463064470,7.4677,133.9,133.87,18.25916833]
[1742463065171,0.0500849,133.91,133.87,10.79046833]
[1742463066169,7.5172849,133.91,133.88,7.4683]
[1742463066472,0.0500849,133.91,133.87,10.79046833]
[1742463066669,0.0500849,133.91,133.89,7.4675]
[1742463067071,0.0500849,133.91,133.87,10.79046833]
[1742463067474,7.5170849,133.91,133.87,18.25936833]
[1742463067871,7.4674,133.9,133.87,18.25936833]
[1742463068468,7.468,133.89,133.87,10.79046833]
[1742463068668,0.0500849,133.91,133.87,10.79046833]
[1742463068877,0.0500849,133.91,133.86,37.19046833]
[1742463069075,7.4688,133.88,133.86,37.19046833]
[1742463070271,7.469,133.87,133.86,37.19046833]
[1742463071866,7.4696,133.86,133.85,26.4]
[1742463072070,7.4696,133.86,133.84,10.79046833]
[1742463072071,10.8383128,133.88,133.84,10.79046833]
[1742463072270,10.8383128,133.88,133.82,10.79046833]
[1742463072475,10.8383128,133.88,133.83,26.4]
[1742463072775,7.4711,133.84,133.83,26.4]
[1742463072972,10.79046833,133.86,133.82,10.79046833]
[1742463073177,0.05579031,133.84,133.82,26.4]
[1742463073373,7.4712,133.83,133.8,37.19046833]
[1742463073775,0.05534057,133.84,133.8,44.66296833]
[1742463073978,0.05534057,133.84,133.81,26.4]
[1742463074177,0.05534057,133.84,133.8,37.19046833]
[1742463074679,7.4713,133.83,133.8,37.19046833]
[1742463075473,7.52624057,133.84,133.8,37.19046833]
[1742463075670,0.05534057,133.84,133.81,7.4722]
[1742463075978,0.05534057,133.84,133.8,37.19046833]
[1742463075979,0.05534057,133.84,133.82,10.79046833]
[1742463076174,0.05534057,133.84,133.82,18.26196833]
[1742463077173,0.05534057,133.84,133.83,7.4712]
[1742463077575,0.05534057,133.84,133.82,10.79046833]
[1742463078180,0.05534057,133.84,133.83,7.4712]
[1742463078577,0.05534057,133.84,133.82,10.79046833]
[1742463079284,7.4712,133.83,133.8,37.19046833]
[1742463079483,10.8458089,133.84,133.8,37.19046833]
[1742463079876,10.8458089,133.84,133.8,10.79046833]
[1742463081488,7.4721,133.82,133.8,10.79046833]
[1742463081687,10.8458089,133.84,133.8,10.79046833]
[1742463081886,10.79046833,133.83,133.79,26.42]
[1742463082088,7.4727,133.81,133.79,26.42]
[1742463082283,10.79046833,133.83,133.79,26.42]
[1742463082787,7.4729,133.8,133.79,26.42]
[1742463082989,10.79046833,133.8,133.73,7.4764]
[1742463083285,26.42,133.81,133.73,10.79046833]
[1742463083286,7.475,133.77,133.73,10.79046833]
[1742463083486,0.049074,133.78,133.73,10.79046833]
[1742463083895,7.4754,133.76,133.73,10.79046833]
[1742463084393,26.469074,133.78,133.73,10.79046833]
[1742463084795,10.79046833,133.77,133.73,10.79046833]
[1742463085395,7.4752,133.76,133.73,10.79046833]
[1742463085896,18.26526833,133.77,133.73,10.79046833]
[1742463086397,7.4752,133.76,133.73,10.79046833]
[1742463087692,18.26546833,133.77,133.73,18.26716833]
[1742463087898,7.475,133.77,133.73,18.26716833]
[1742463088097,26.469074,133.78,133.73,10.79046833]
[1742463088299,33.943374,133.78,133.74,7.476]
[1742463088796,26.469074,133.78,133.74,7.476]
[1742463089292,0.049074,133.78,133.76,10.79046833]
[1742463089499,10.79046833,133.83,133.77,10.79046833]
[1742463089701,37.21046833,133.83,133.78,10.79046833]
[1742463089900,7.52929368,133.81,133.78,10.79046833]
[1742463090299,0.05689368,133.81,133.78,10.79046833]
[1742463090596,0.05689368,133.81,133.78,44.68416833]
[1742463090796,0.05689368,133.81,133.78,37.21046833]
[1742463091094,7.4732,133.8,133.78,37.21046833]
[1742463091297,37.21046833,133.8,133.75,10.79046833]
[1742463091493,10.79046833,133.79,133.74,37.21046833]
[1742463091697,7.4749,133.77,133.74,44.68636833]
[1742463091896,10.84089511,133.78,133.74,37.21046833]
[1742463092098,10.84089511,133.78,133.73,10.79046833]
[1742463092403,7.4755,133.76,133.73,10.79046833]
[1742463093099,7.52613561,133.77,133.73,18.26716833]
[1742463093295,0.05133561,133.77,133.73,18.26716833]
[1742463094398,7.4754,133.76,133.73,18.26716833]
[1742463095201,7.52603561,133.77,133.73,18.26716833]
[1742463095501,7.52603561,133.77,133.74,7.476]
[1742463095900,7.52603561,133.77,133.73,10.79046833]
[1742463096201,7.52603561,133.77,133.73,18.26716833]
[1742463096405,7.4751,133.76,133.73,18.26716833]
[1742463096701,0.05133561,133.77,133.74,10.79046833]
[1742463096904,0.05133561,133.77,133.75,10.79046833]
[1742463097099,0.05133561,133.77,133.76,10.79046833]
[1742463098402,0.05133561,133.77,133.76,18.26556833]
[1742463103409,257.35046833,133.84,133.76,14.78616833]
[1742463103604,257.35046833,133.84,133.79,10.79046833]
[1742463103904,257.35046833,133.84,133.79,37.21046833]
[1742463104608,0.05457247,133.83,133.8,0.05207975]
[1742463104908,10.8450408,133.83,133.8,0.05207975]
[1742463105104,7.4723,133.81,133.8,0.05207975]
[1742463106703,7.472,133.82,133.8,0.05207975]
[1742463106909,0.05457247,133.83,133.8,10.84254808]
[1742463107505,0.05457247,133.83,133.8,18.31504808]
[1742463107910,0.05457247,133.83,133.8,10.84254808]
[1742463108207,7.4723,133.82,133.8,0.05207975]
[1742463109205,7.52607247,133.83,133.8,0.05207975]
[1742463109509,0.05457247,133.83,133.8,0.05207975]
[1742463109712,7.52607247,133.83,133.8,0.05207975]
[1742463110012,0.05457247,133.83,133.8,0.05207975]
[1742463110202,0.05457247,133.83,133.81,7.4721]
[1742463110605,0.05457247,133.83,133.81,18.26256833]
[1742463110812,0.05457247,133.83,133.82,44.68226833]
[1742463111505,300.78653013,133.89,133.84,7.4704]
[1742463111709,300.78653013,133.89,133.84,18.26086833]
[1742463111907,300.78653013,133.89,133.85,26.42]
[1742463112615,7.4688,133.88,133.85,26.42]
[1742463112812,7.521768,133.88,133.86,0.05339332]
[1742463114512,7.469,133.87,133.86,0.05339332]
[1742463115118,18.31203633,133.88,133.86,0.05339332]
[1742463115314,7.521568,133.88,133.86,0.05339332]
[1742463115511,0.052968,133.88,133.86,0.05339332]
[1742463115711,0.052968,133.88,133.87,10.79046833]
[1742463116215,7.521368,133.88,133.87,10.79046833]
[1742463117318,7.469,133.87,133.86,0.05339332]
[1742463117512,18.25946833,133.87,133.86,0.05339332]
[1742463117713,7.4707,133.84,133.83,26.42]
[1742463118115,10.79046833,133.86,133.83,26.42]
[1742463118415,10.79046833,133.87,133.83,37.21046833]
[1742463118817,10.79046833,133.87,133.83,44.68136833]
[1742463119019,7.51868848,133.86,133.84,0.05315323]
[1742463120018,7.4701,133.85,133.84,0.05315323]
[1742463122715,18.26056833,133.85,133.84,0.05315323]
[1742463124529,7.4701,133.85,133.84,0.05315323]
[1742463125827,2.05968848,133.86,133.84,0.05315323]
[1742463126126,0.04908848,133.86,133.84,18.31432156]
[1742463126328,0.04908848,133.86,133.84,44.73432156]
[1742463126626,0.04908848,133.86,133.85,7.4701]
[1742463126824,0.04908848,133.86,133.85,18.26056833]
[1742463129726,7.4672,133.91,133.88,7.4682]
[1742463129927,7.4672,133.91,133.89,26.42]
[1742463130129,7.4672,133.91,133.89,33.8878]
[1742463130331,7.4672,133.91,133.89,26.42]
[1742463130624,1.9568,133.93,133.89,37.21046833]
[1742463130823,0.04850499,133.91,133.89,26.47560109]
[1742463131021,7.4673,133.9,133.89,26.47560109]
[1742463132432,7.4673,133.9,133.89,0.05560109]
[1742463133827,7.51550499,133.91,133.89,0.05560109]
[1742463135332,7.51550499,133.91,133.9,26.4]
[1742463137435,0.04850499,133.91,133.9,26.4]
[1742463138239,7.51530499,133.91,133.9,26.4]
[1742463139038,0.04850499,133.91,133.9,26.4]
[1742463140239,7.51530499,133.91,133.9,26.4]
[1742463140641,0.04850499,133.91,133.9,26.4]
[1742463142542,0.04850499,133.91,133.9,33.8673]
[1742463143844,0.04850499,133.91,133.9,26.4]
[1742463144642,0.04850499,133.91,133.9,33.8673]
[1742463145645,0.04850499,133.91,133.9,26.4]
[1742463146947,0.04850499,133.91,133.9,33.8673]
[1742463150257,1.9465,133.96,133.93,7.4654]
[1742463150456,1.9465,133.96,133.94,26.4]
[1742463150656,7.4644,133.96,133.94,26.4]
[1742463151455,7.51310567,133.96,133.94,26.45622319]
[1742463152055,0.04870567,133.96,133.94,26.45622319]
[1742463152456,7.51310567,133.96,133.94,26.45622319]
[1742463152763,0.04870567,133.96,133.94,26.45622319]
[1742463152946,7.51300567,133.96,133.94,26.45622319]
[1742463153453,0.04870567,133.96,133.94,26.45622319]
[1742463154054,7.4645,133.95,133.94,26.45622319]
[1742463154555,7.4645,133.95,133.94,0.05622319]
[1742463154755,18.251031,133.95,133.94,26.45622319]
[1742463155854,7.4645,133.95,133.94,26.45622319]
[1742463157957,7.4645,133.95,133.94,0.05622319]
[1742463158363,18.251031,133.95,133.94,0.05622319]
[1742463160362,7.4645,133.95,133.94,0.05622319]
[1742463161662,18.251031,133.95,133.94,0.05622319]
[1742463163963,7.4645,133.95,133.94,0.05622319]
[1742463168461,18.251031,133.95,133.94,0.05622319]
[1742463172268,7.4671,133.91,133.88,18.254731]
[1742463172468,7.4671,133.91,133.89,26.4]
[1742463172667,10.786531,133.93,133.89,26.4]
[1742463173066,10.786531,133.93,133.87,257.246531]